Cogmind - Beta 9.3 @@@ ROGUE MODE // 2019.12.17 @ 11:22:06 // Winter2019/RPGLIKE Player: Cassie Rose Result: Destroyed by G-47 Trooper with Particle Gun Performance ------------- Evolutions (3) 1500 Regions Visited (8) 1600 Robots Destroyed (128) 640 Value Destroyed (4737) 4737 Prototype IDs (1) 20 Alien Tech Used (0) 0 Bonus (2628) 2628 TOTAL SCORE: 11125 Bonus ------- High Alert Combat Kills 528 Entered Garrisons 600 Used RIF Installer 1500 Cogmind --------- Core Integrity 0/1250 Matter 300/300 Energy 322/340 System Corruption 0% Temperature Cool (-91) Movement Treading (156) Location -7/Garrison Parts ------- > --- POWER (2) -------- Improved Deuterium Engine Micro Nuclear Core > --- PROPULSION (4) --- Light Treads Light Treads Light Treads Advanced Treads > --- UTILITY (8) ------ Cryofiber Web Improved Cooling System Improved Terrain Scanner Improved Terrain Scan Processor Hardened Medium Armor Plating Improved Light Armor Plating Relay Coupler [NC] (66) Relay Coupler [Grunt] (62) > --- WEAPON (2) ------- Heavy Ion Cannon Plasma Cannon > --- INVENTORY (2) ---- Relay Coupler [Swarmer] (86) Remote Datajack Peak State ------------ > --- POWER ------------ Improved Deuterium Engine Micro Nuclear Core > --- PROPULSION ------- Light Treads Light Treads Light Treads Advanced Treads > --- UTILITY ---------- Cryofiber Web Improved Cooling System Improved Terrain Scanner Improved Terrain Scan Processor Hardened Medium Armor Plating Improved Light Armor Plating Relay Coupler [NC] Relay Coupler [Grunt] > --- WEAPON ----------- Plasma Cannon Plasma Cannon > --- INVENTORY -------- Improved Heat Sink Remote Datajack [Rating: 44] Favorites ----------- Power Light Nuclear Core Engine Improved Deuterium Engine Power Core Light Nuclear Core Propulsion Light Treads Treads Light Treads Utility Improved Terrain Scanner Device Improved Terrain Scanner Processor Improved Terrain Scan Processor Hackware Relay Coupler [Grunt] Protection Hardened Medium Armor Plating Weapon Plasma Cannon Energy Cannon Plasma Cannon Ballistic Gun Assault Rifle Build | -11 -10 -9 -8 -8 -7 -7 -7 -7 ------- Run | Scr Mat Mat Mat Gar Fac Gar Fac Gar Slots Evolved 12 | 4 1 1 3 . . 1 2 . Power 1 | 1 . . . . . . . . Propulsion 3 | 1 . 1 1 . . . . . Utility 7 | 1 1 . 2 . . 1 2 . Weapon 1 | 1 . . . . . . . . Parts Attached 49 | 8 8 6 6 4 5 3 8 1 Power 12 | 2 3 2 . 2 2 . 1 . Engine 9 | 2 2 2 . 1 1 . 1 . Core 3 | . 1 . . 1 1 . . . Reactor . | . . . . . . . . . Propulsion 10 | 2 1 1 2 . 2 1 1 . Treads 10 | 2 1 1 2 . 2 1 1 . Leg . | . . . . . . . . . Wheel . | . . . . . . . . . Hover . | . . . . . . . . . Flight . | . . . . . . . . . Utility 16 | 2 2 1 2 2 . 2 4 1 Device 7 | 1 1 1 1 1 . . 2 . Storage . | . . . . . . . . . Processor 3 | 1 1 . 1 . . . . . Hackware 4 | . . . . 1 . 2 . 1 Protection 2 | . . . . . . . 2 . Artifact . | . . . . . . . . . Weapon 11 | 2 2 2 2 . 1 . 2 . Energy Gun . | . . . . . . . . . Energy Cannon 5 | . . . 2 . 1 . 2 . Ballistic Gun 6 | 2 2 2 . . . . . . Ballistic Cannon . | . . . . . . . . . Launcher . | . . . . . . . . . Special Weapon . | . . . . . . . . . Impact Weapon . | . . . . . . . . . Slashing Weapon . | . . . . . . . . . Piercing Weapon . | . . . . . . . . . Special Melee Weapon . | . . . . . . . . . Unidentified Prototypes 1 | . . 1 . . . . . . Parts Lost . | . . . . . . . . . Power . | . . . . . . . . . Propulsion . | . . . . . . . . . Utility . | . . . . . . . . . Weapon . | . . . . . . . . . Highest Loss Streak . | . . . . . . . . . Average Slot Usage (%) 95 | . 100 99 86 94 99 93 95 100 Engine 10 | . 24 10 8 7 7 7 6 6 Core 6 | . . 10 8 7 7 7 6 6 Treads 25 | . 24 21 22 30 30 28 25 25 Device 19 | . 13 21 19 23 23 21 18 18 Processor 8 | . 11 10 8 7 7 7 6 6 Hackware 4 | . . . . 1 7 7 12 12 Protection 1 | . . . . . . . 7 12 Energy Cannon 10 | . . . 16 15 14 14 12 12 Ballistic Gun 6 | . 24 21 1 . . . . . Naked Turns . | . . . . . . . . . Heaviest Build 45 | 12 16 20 30 30 33 33 45 45 Greatest Support 92 | 40 40 50 92 92 92 92 92 92 Greatest Overweight (x) 2 | 2 . . . . . . . . Average Overweight (x) . | . . . . . . . . . Largest Inventory Capacity 2 | 2 2 2 2 2 2 2 2 2 Average Capacity 2 | 2 2 2 2 2 2 2 2 2 Most Carried 2 | 2 2 2 2 2 2 2 2 2 Average Carried 1 | . 1 1 1 1 1 1 1 1 Final Capacity 2 | 2 2 2 2 2 2 2 2 2 Final Carried 2 | . 1 2 2 1 1 1 1 2 Class Distribution -------------------- 63% | Scavenger-Skirmisher 17% | Mutant 11% | Scavenger-Mutant 7% | Skirmisher Dominant Class ---------------- Mutant | -10/Materials Scavenger-Mutant | -9/Materials Scavenger-Skirmisher | -8/Materials Scavenger-Skirmisher | -8/Garrison Scavenger-Skirmisher | -7/Factory Scavenger-Skirmisher | -7/Garrison Scavenger-Skirmisher | -7/Factory Scavenger-Skirmisher | -7/Garrison Resources | -11 -10 -9 -8 -8 -7 -7 -7 -7 ----------- Run | Scr Mat Mat Mat Gar Fac Gar Fac Gar Matter Collected 1491 | 292 452 463 74 40 30 50 40 50 Remotely . | . . . . . . . . . Salvage Created 4858 | 140 761 606 1159 416 225 847 329 375 Parts 272 | 16 52 49 44 18 10 46 18 19 Haulers Intercepted 7 | . 2 2 3 . . . . . Recyclers Shooed 2 | . 1 . 1 . . . . . Parts Field Recycled . | . . . . . . . . . Retrieved Matter . | . . . . . . . . . Parts Self-Destructed . | . . . . . . . . . Prevented . | . . . . . . . . . Kills | -11 -10 -9 -8 -8 -7 -7 -7 -7 ------- Run | Scr Mat Mat Mat Gar Fac Gar Fac Gar Combat Hostiles Destroyed 95 | . 15 12 16 11 4 23 5 9 Guns 27 | . 15 12 . . . . . . Cannons 64 | . . . 14 11 2 23 5 9 AOE 3 | . . . 1 . 2 . . . Classes Destroyed 15 | 2 7 2 1 2 . . 1 . Worker 5 | . 3 2 . . . . . . Builder 4 | . 1 3 . . . . . . Tunneler 3 | 3 . . . . . . . . Hauler 7 | . 2 2 3 . . . . . Recycler 7 | 1 1 . 3 . 1 . 1 . Operator 1 | . 1 . . . . . . . Watcher 6 | . 2 . 3 . . . 1 . Swarmer 32 | . 3 3 2 5 . 13 . 6 Grunt 38 | . 12 5 8 3 3 4 2 1 Brawler 2 | . . . 1 . . . . 1 Duelist 3 | . . 1 . 1 . 1 . . Protector 1 | . . . . 1 . . . . Sentry 16 | . . 3 5 . 1 5 2 . Demolisher 1 | . . . . 1 . . . . Programmer 2 | . . . . . . . 1 1 Best Kill Streak 9 | 4 3 7 9 6 3 6 2 5 Combat Bots Only 9 | . 3 4 9 6 3 6 2 5 Max Kills in Single Turn 2 | 2 2 2 1 1 1 2 1 1 Gunslinging 1 | . 1 . . . . . . . Exploded 1 | . . . 1 . 1 . . . Melee . | . . . . . . . . . Uniques/NPCs Destroyed . | . . . . . . . . . Combat | -11 -10 -9 -8 -8 -7 -7 -7 -7 -------- Run | Scr Mat Mat Mat Gar Fac Gar Fac Gar Damage Taken 6714 | . 1135 824 822 1136 88 1355 260 1094 Core 5355 | . 919 669 657 900 72 1066 208 864 Absorbed by Shields . | . . . . . . . . . Redirected to Core 4423 | . 697 496 559 752 56 934 168 761 Core Remaining (%) 66 | 100 72 67 . 26 . . . . Volleys Fired 415 | 3 108 57 65 53 11 71 17 30 Largest 2 | 2 2 2 2 2 2 2 2 2 Hottest 160 | 40 40 43 160 160 160 160 160 145 Shots Fired 829 | 6 215 114 130 106 22 142 34 60 Gun 335 | 6 215 114 . . . . . . Cannon 494 | . . . 130 106 22 142 34 60 Launcher . | . . . . . . . . . Special . | . . . . . . . . . Kinetic 335 | 6 215 114 . . . . . . Thermal 494 | . . . 130 106 22 142 34 60 Explosive . | . . . . . . . . . Electromagnetic . | . . . . . . . . . Robot Hit Streak 32 | 4 13 11 28 13 5 32 10 9 Robot Miss Streak 4 | . 4 4 4 3 2 2 1 2 Penetration Max . | . . . . . . . . . Secondary Targets 10 | . 5 5 . . . . . . Max Gunslinging Chain 1 | . 1 1 . . . . . . Shots Hit Robots 536 | 4 151 80 89 52 12 84 26 38 Core Hits 212 | 5 55 33 32 17 7 34 11 18 Critical Hits 5 | . 2 . 1 2 . . . . Critical Kills . | . . . . . . . . . Critical Parts Destroyed 5 | . 2 . 1 2 . . . . Melee Attacks . | . . . . . . . . . Impact . | . . . . . . . . . Slashing . | . . . . . . . . . Piercing . | . . . . . . . . . Sneak Attacks . | . . . . . . . . . Combat Hostiles . | . . . . . . . . . Follow-up Attacks . | . . . . . . . . . Damage Inflicted 11440 | 59 1645 1078 2247 1270 643 2483 716 1299 Guns 2782 | 59 1645 1078 . . . . . . Cannons 8320 | . . . 2205 1270 347 2483 716 1299 Explosions 331 | . . . 35 . 296 . . . Melee . | . . . . . . . . . Ramming 7 | . . . 7 . . . . . Kinetic 2782 | 59 1645 1078 . . . . . . Thermal 8430 | . . . 2205 1270 457 2483 716 1299 Explosive 186 | . . . . . 186 . . . Electromagnetic 35 | . . . 35 . . . . . Impact . | . . . . . . . . . Slashing . | . . . . . . . . . Piercing . | . . . . . . . . . Highest Corruption 2 | . 2 . . . . . . . Average Corruption 1 | . 1 . . . . . . . Corruption Purged . | . . . . . . . . . Effects 11 | . 11 . . . . . . . Message Errors 4 | . 4 . . . . . . . Energy Discharges 1 | . 1 . . . . . . . Data Loss (minor) 1 | . 1 . . . . . . . Targeting Errors 4 | . 4 . . . . . . . Weapon Failures 1 | . 1 . . . . . . . Overload Shots . | . . . . . . . . . Overflow Damage 207 | . . . 45 66 11 42 . 43 Projectiles 207 | . . . 45 66 11 42 . 43 Explosions . | . . . . . . . . . Melee . | . . . . . . . . . Knockbacks . | . . . . . . . . . Impact . | . . . . . . . . . Kinetic . | . . . . . . . . . Secondary . | . . . . . . . . . Self-Inflicted Damage 46 | . . . 17 . 29 . . . Shots 2 | . . . 1 . 1 . . . Rammed 1 | . . . 1 . . . . . Targets Rammed 1 | . . . 1 . . . . . Kicked . | . . . . . . . . . Crushed . | . . . . . . . . . Highest Temperature 178 | 10 171 . 178 . . . . . Average Temperature 37 | 7 34 . 44 . . . . . Received Heat Transfer 2163 | . 558 336 351 225 30 348 108 207 Siege Activations . | . . . . . . . . . Robots Corrupted . | . . . . . . . . . Combat Hostiles . | . . . . . . . . . Parts Fried . | . . . . . . . . . Impact Corruptions . | . . . . . . . . . Robots Melted 2 | . . . 1 . . . . 1 Combat Hostiles 1 | . . . 1 . . . . . Parts Melted 25 | . . . 8 4 . 9 3 1 Heat Transferred 14600 | . . . 4300 2366 650 4146 1237 1901 Parts Sabotaged . | . . . . . . . . . Parts Stolen . | . . . . . . . . . Parts Stripped . | . . . . . . . . . Power Chain Reactions 1 | . . . 1 . . . . . Missiles Intercepted . | . . . . . . . . . Alert | -11 -10 -9 -8 -8 -7 -7 -7 -7 ------- Run | Scr Mat Mat Mat Gar Fac Gar Fac Gar Peak Influence 991 | 20 227 486 463 743 582 991 673 522 Average Influence 364 | 5 105 279 224 519 461 620 525 344 Maximum Alert Level 3 | . 1 2 2 3 2 3 2 2 Low Security (%) 32 | 100 93 30 60 . . . . . Level 1 26 | . 6 51 29 35 60 19 2 62 Level 2 34 | . . 18 10 49 39 44 97 37 Level 3 7 | . . . . 15 . 36 . . Level 4 . | . . . . . . . . . Level 5 . | . . . . . . . . . High Security . | . . . . . . . . . Max Security . | . . . . . . . . . Squads Dispatched 8 | . 4 . 1 . 1 . 2 . Investigation . | . . . . . . . . . Extermination 1 | . . . . . . . 1 . Reinforcement 7 | . 4 . 1 . 1 . 1 . Assault . | . . . . . . . . . Garrison . | . . . . . . . . . Intercept . | . . . . . . . . . Construction Impeded . | . . . . . . . . . Haulers Reinforced 1 | . . . . . . . 1 . Stealth | -11 -10 -9 -8 -8 -7 -7 -7 -7 --------- Run | Scr Mat Mat Mat Gar Fac Gar Fac Gar Distress Signals 2 | . 2 . . . . . . . Communications Jammed . | . . . . . . . . . Distress Signals . | . . . . . . . . . Times Spotted 169 | . 31 19 27 24 6 34 6 22 Peak Tracking Total 13 | . 5 5 8 8 3 5 2 13 Tactical Retreats 19 | . 3 . 2 8 . 5 . 1 Traps | -11 -10 -9 -8 -8 -7 -7 -7 -7 ------- Run | Scr Mat Mat Mat Gar Fac Gar Fac Gar Traps Triggered 3 | . 1 . . . . 2 . . Indirectly . | . . . . . . . . . Trap Hack Attempts . | . . . . . . . . . Triggered . | . . . . . . . . . Disarmed . | . . . . . . . . . Reprogrammed . | . . . . . . . . . Reused . | . . . . . . . . . Traps Extracted . | . . . . . . . . . Installed . | . . . . . . . . . Triggered . | . . . . . . . . . Machines | -11 -10 -9 -8 -8 -7 -7 -7 -7 ---------- Run | Scr Mat Mat Mat Gar Fac Gar Fac Gar Machines Disabled 23 | . . 2 7 4 3 6 . 1 Max in Single Turn 2 | . . 1 2 1 2 2 . 1 Garrison Relay 3 | . . . . 1 . 1 . 1 Phase Generator 1 | . . . . . . 1 . . Machines Sabotaged . | . . . . . . . . . Garrisons Compromised . | . . . . . . . . . Overloaded Fab Kills . | . . . . . . . . . Fab Network Shutdowns . | . . . . . . . . . Hacking | -11 -10 -9 -8 -8 -7 -7 -7 -7 --------- Run | Scr Mat Mat Mat Gar Fac Gar Fac Gar Machines Accessed 4 | . . . 1 . 2 . 1 . Terminals . | . . . . . . . . . Fabricators . | . . . . . . . . . Repair Stations 1 | . . . . . 1 . . . Recycling Units . | . . . . . . . . . Scanalyzers . | . . . . . . . . . Garrison Access 3 | . . . 1 . 1 . 1 . Total Hacks 5 | . . . 1 . 3 . 1 . Successful 5 | . . . 1 . 3 . 1 . Failed . | . . . . . . . . . Catastrophic . | . . . . . . . . . Database Lockouts . | . . . . . . . . . Manual . | . . . . . . . . . Terminals . | . . . . . . . . . Fabricators . | . . . . . . . . . Repair Stations 2 | . . . . . 2 . . . Recycling Units . | . . . . . . . . . Scanalyzers . | . . . . . . . . . Garrison Access 3 | . . . 1 . 1 . 1 . Terminal Hacks . | . . . . . . . . . Fabricator Hacks . | . . . . . . . . . Repair Station Hacks 2 | . . . . . 2 . . . Scan Component 1 | . . . . . 1 . . . Repair 1 | . . . . . 1 . . . Recycling Unit Hacks . | . . . . . . . . . Scanalyzer . | . . . . . . . . . Garrison Access Hacks 3 | . . . 1 . 1 . 1 . Unlock Access 3 | . . . 1 . 1 . 1 . Unauthorized Hacks . | . . . . . . . . . Terminals . | . . . . . . . . . Fabricators . | . . . . . . . . . Repair Stations . | . . . . . . . . . Recycling Units . | . . . . . . . . . Scanalyzers . | . . . . . . . . . Garrison Access . | . . . . . . . . . Data Cores Recovered . | . . . . . . . . . Used . | . . . . . . . . . Hacking Detections 2 | . . . . . 1 . 1 . Full Trace Events . | . . . . . . . . . Feedback Events . | . . . . . . . . . Feedback Blocked . | . . . . . . . . . Robot Schematics Acquired . | . . . . . . . . . Robots Built . | . . . . . . . . . Matter . | . . . . . . . . . Time . | . . . . . . . . . Total Robot Build Rating . | . . . . . . . . . Part Schematics Acquired . | . . . . . . . . . Parts Built . | . . . . . . . . . Matter . | . . . . . . . . . Time . | . . . . . . . . . Total Part Build Rating . | . . . . . . . . . Parts Repaired 1 | . . . . . 1 . . . Time 44 | . . . . . 44 . . . Parts Recycled . | . . . . . . . . . Recycled Matter . | . . . . . . . . . Retrieved Matter . | . . . . . . . . . Retrieved Components . | . . . . . . . . . Parts Scanalyzed . | . . . . . . . . . Part Schematics Acquired . | . . . . . . . . . Parts Damaged . | . . . . . . . . . Bothacking | -11 -10 -9 -8 -8 -7 -7 -7 -7 ------------ Run | Scr Mat Mat Mat Gar Fac Gar Fac Gar Used RIF Installer 3 | . . . . 1 . 1 . 1 Coupler Efficiency 1 | . . . . . . . . 1 Structural Interface 1 | . . . . . . 1 . . Robots Hacked . | . . . . . . . . . Non-combat . | . . . . . . . . . Combat . | . . . . . . . . . Robot Hacks Applied . | . . . . . . . . . Relay Couplers Released 6 | . . . . 2 . 2 . 2 Machine Destruction 6 | . . . . 2 . 2 . 2 Attached 4 | . . . . 1 . 2 . 1 Robots Rewired . | . . . . . . . . . Allies Hacked . | . . . . . . . . . Hacks Repelled . | . . . . . . . . . Allies | -11 -10 -9 -8 -8 -7 -7 -7 -7 -------- Run | Scr Mat Mat Mat Gar Fac Gar Fac Gar Total Allies . | . . . . . . . . . Largest Group . | . . . . . . . . . Highest-Rated Group . | . . . . . . . . . Highest-Rated Ally . | . . . . . . . . . Total Orders . | . . . . . . . . . Ally Attacks . | . . . . . . . . . Total Damage . | . . . . . . . . . Kills . | . . . . . . . . . Allies Corrupted . | . . . . . . . . . Allies Melted . | . . . . . . . . . Intel | -11 -10 -9 -8 -8 -7 -7 -7 -7 ------- Run | Scr Mat Mat Mat Gar Fac Gar Fac Gar Robot Analysis Total . | . . . . . . . . . Derelict Logs Recovered . | . . . . . . . . . Drone Launches . | . . . . . . . . . Drone Recoveries . | . . . . . . . . . Exploration | -11 -10 -9 -8 -8 -7 -7 -7 -7 ------------- Run | Scr Mat Mat Mat Gar Fac Gar Fac Gar Turns Passed 5937 | 83 1084 496 1084 718 454 876 817 325 Spaces Moved 2592 | 40 418 174 510 271 225 354 460 140 Core 10 | 10 . . . . . . . . Treads 2582 | 30 418 174 510 271 225 354 460 140 Legs . | . . . . . . . . . Wheels . | . . . . . . . . . Hover . | . . . . . . . . . Flight . | . . . . . . . . . Fastest Speed 50 | 50 160 160 155 156 156 156 156 156 Average Speed 157 | 150 160 160 157 156 156 156 156 156 Slowest Speed 160 | 160 160 160 160 156 156 156 156 156 Overloaded Moves . | . . . . . . . . . Propulsion Burnouts . | . . . . . . . . . Robots Hopped . | . . . . . . . . . Cave-ins Triggered . | . . . . . . . . . Exploration Rate (%) 33 | 4 60 17 46 59 5 68 18 25 Regions Visited 8 Branch Regions . Pre-discovered Areas . | . . . . . . . . . Known Exits Taken 3 | . . . 1 . 1 . 1 . Unknown Exits Taken 3 | 1 1 1 . . . . . . Scrap Searched . | . . . . . . . . . Spaces Dug . | . . . . . . . . . Terrain Destroyed 177 | . . . 25 . 58 90 4 . Melee . | . . . . . . . . . Projectile 33 | . . . 25 . 4 . 4 . AOE 144 | . . . . . 54 90 . . Actions | -11 -10 -9 -8 -8 -7 -7 -7 -7 --------- Run | Scr Mat Mat Mat Gar Fac Gar Fac Gar Total 3650 | 58 639 280 658 461 306 535 525 188 Wait 334 | . 53 10 32 120 46 62 9 2 Move 2587 | 39 417 173 510 270 225 353 460 140 Hop . | . . . . . . . . . Pick Up 43 | 8 7 4 4 3 4 3 8 2 Fast Attach 5 | . 1 1 3 . . . . . Attach 17 | 8 1 . 2 2 1 1 2 . Detach . | . . . . . . . . . Swap 27 | . 6 5 1 2 4 2 6 1 Drop 31 | . 7 6 4 3 4 1 6 . Fire 415 | 3 108 57 65 53 11 71 17 30 Melee . | . . . . . . . . . Ram . | . . . . . . . . . Kick . | . . . . . . . . . Crush 1 | . . . 1 . . . . . Escape Stasis . | . . . . . . . . . Rewire 1 | . . . . . . . . 1 Trap . | . . . . . . . . . Miscellaneous 189 | . 39 24 36 8 11 42 17 12 Route ------- -11/Scrapyard -10/Materials (discovered 2 exits: [*Mat x2]) -9/Materials -8/Materials (discovered 2 exits: *Fac / Gar) -8/Garrison (discovered 2 exits: *Fac x2) -7/Factory -7/Garrison (discovered 2 exits: *Fac x2) -7/Factory (discovered 3 exits: [*Fac] / [*Low] / Gar) -7/Garrison History --------- Turn | Location | Event 1 | -11/Scrapyard | Upgraded with Power slot (x1) 1 | -11/Scrapyard | Upgraded with Propulsion slot (x1) 1 | -11/Scrapyard | Upgraded with Utility slot (x1) 1 | -11/Scrapyard | Upgraded with Weapon slot (x1) 29 | -11/Scrapyard | Discovered new exit (range 16) 84 | -11/Scrapyard | Entered Materials 301 | -10/Materials | Build established: Mutant 712 | -10/Materials | Discovered new exit (range 15) 786 | -10/Materials | Discovered new exit (range 15) 863 | -10/Materials | Core integrity fell below 50% 864 | -10/Materials | Reached level 2 1016 | -10/Materials | Upgraded with Utility slot (x1) 1168 | -10/Materials | Entered another Materials area 1170 | -9/Materials | Reached level 3 1327 | -9/Materials | Build established: Scavenger-Mutant 1465 | -9/Materials | Reached level 4 1500 | -9/Materials | Core integrity fell below 50% 1578 | -9/Materials | Discovered new exit (range 15) 1658 | -9/Materials | Upgraded with Propulsion slot (x1) 1664 | -9/Materials | Entered another Materials area 1666 | -8/Materials | Reached level 5 1672 | -8/Materials | Upgraded with Propulsion slot (x1) 1806 | -8/Materials | Reached level 6 1944 | -8/Materials | Build established: Scavenger-Skirmisher 2316 | -8/Materials | Discovered new exit (range 14) 2489 | -8/Materials | Build established: Skirmisher 2540 | -8/Materials | Upgraded with Utility slot (x1) 2619 | -8/Materials | Reached level 7 2658 | -8/Materials | Destroyed 9 combat bots 2748 | -8/Materials | Identified exit to Garrison 2748 | -8/Materials | Upgraded with Utility slot (x1) 2748 | -8/Materials | Entered Garrison 2926 | -8/Garrison | Triggered checkpoint 2942 | -8/Garrison | Build established: Scavenger-Skirmisher 2965 | -8/Garrison | Triggered checkpoint 2992 | -8/Garrison | Core integrity fell below 50% 3017 | -8/Garrison | Reached level 8 3141 | -8/Garrison | Discovered new exit (range 16) 3177 | -8/Garrison | Installed Relay Interface Framework 3214 | -8/Garrison | Triggered checkpoint 3259 | -8/Garrison | Garrison Relay disabled 3332 | -8/Garrison | Triggered checkpoint 3438 | -8/Garrison | Discovered new exit (range 15) 3466 | -8/Garrison | Entered Factory 3467 | -7/Factory | Core integrity fell below 50% 3468 | -7/Factory | Reached level 9 3674 | -7/Factory | Repaired Plasma Cannon 3698 | -7/Factory | Reached level 10 3920 | -7/Factory | Identified exit to Garrison 3920 | -7/Factory | Entered Garrison 3981 | -7/Garrison | Reached level 11 4016 | -7/Garrison | Upgraded with Utility slot (x1) 4156 | -7/Garrison | Triggered checkpoint 4181 | -7/Garrison | Triggered checkpoint 4263 | -7/Garrison | Discovered new exit (range 15) 4268 | -7/Garrison | Triggered checkpoint 4475 | -7/Garrison | Phase Generator disabled 4475 | -7/Garrison | Reached level 12 4622 | -7/Garrison | Triggered checkpoint 4658 | -7/Garrison | Discovered new exit (range 12) 4686 | -7/Garrison | Expanded RIF knowledge: Structural Interface 4720 | -7/Garrison | Reached level 13 4720 | -7/Garrison | Triggered checkpoint 4743 | -7/Garrison | Garrison Relay disabled 4796 | -7/Garrison | Entered Factory 4796 | -7/Factory | Upgraded with Utility slot (x2) 4816 | -7/Factory | Discovered new exit (range 9) 5525 | -7/Factory | Discovered new exit (range 14) 5613 | -7/Factory | Identified exit to Garrison 5613 | -7/Factory | Entered Garrison 5621 | -7/Garrison | Expanded RIF knowledge: Coupler Efficiency 5704 | -7/Garrison | Reached level 14 5794 | -7/Garrison | Triggered checkpoint 5815 | -7/Garrison | Garrison Relay disabled 5890 | -7/Garrison | Triggered checkpoint 5926 | -7/Garrison | Core integrity fell below 20% 5938 | -7/Garrison | Destroyed by G-47 Trooper with Particle Gun Last Messages --------------- 05815_ Garrison Relay disabled. 05815_ Relay Coupler [NC] tumbles out of relay unit. 05815_ Relay Coupler [Swarmer] tumbles out of relay unit. 05823_ Acquired Relay Coupler [NC]. 05824_ Discarded Relay Coupler [NC]. 05827_ Acquired Relay Coupler [Swarmer]. 05890_ Beams of light sweep through the air. An alarm sounds. 05892_ Upgraded: Ranged Accuracy (+5) 05894_ Destroyed VTOL Module. 05900_ S-27 Virus destroyed. 05916_ L-41 Fighter heat spikes uncontrollably. 05916_ L-41 Fighter destroyed. 05917_ C-30 ARC bursts open, deploying its payload. 05917_ P-60 Hacker unfolds itself. 05921_ G-47 Trooper destroyed. Garrison Door opened remotely. 05923_ G-47 Trooper destroyed. 05927_ Acquired 10 matter. 05934_ B-48 Gladiator destroyed. 05937_ P-60 Hacker destroyed. Map ----- +----------------------------------------------------+ | ?????????????????????????????????????????????????? | | ?????????????????????????????????????????????????? | | ?????????????????????????????????????????????????? | | ?????????????????????????????????????????????????? | | ?????????????????????????????????????????????????? | | ?????????????????????????????????????????????????? | | ?????????????????????????????????????????????????? | | ?????????????????????????????????????????????????? | | ?????????????????????????????????????????????????? | | ???????????????????? ???#????????????????? ?????? | | ???????????????????# #?#?##?## ?####?#### ###?? | | ????????????????? ## ######### #?######## ##### | | ?????????????#""""## ######### ####### ? ## | | ???????????? " ######## ####### ?## | | ???????????? "%" ####### #? | | ??????????? # # ## | | ?????????? ## ## ################# ? ## | | ????????? ## ## ^########################### | | ????????? ! #######################?# | | ????????" *% ######################### | | ????????" ######################### | | ??????? " % % ######################### | | ???????## ## ##^[^########################### | | ???????## ## ## *%########################### | | ?????? gsg[!/[ ################## | | ?????? g=%%%!@ + =*=###### | | ??????### g *%####+## ###########%###### | | ???????### ## ## ##### ##[ ###########=###### | | ?????#?### ## ## ##### ## ###########%###### | | ???????### ######## ##### ##= ###########+###### | | ???????? # ######## ##### ## ########## ##### | | ???????### ######## + ## ########## ##### | | ?????# ?## ######## ##### + =+ + ## | | ???????##? ######## ######## %##### ######### ## | | ?????? ?? ######## ########=*##### ######### #" | | ???????? ######## ##### ######### " | | ?????#??############ #########^ | | ?????? ###?################### ############### " | | ???????##???################## #################" | | ?????? ???#################### ################## | | ???????? ??##??############### ################## | | ??????? ?##??################ ################## | | ??????? ? ##?################# ################## | | ??????????#??################# ################## | | ?????????###?################# ##### | | ????????????##?############### ##### | | ?????????????#?########################### ##### | | ???????????#???##?######################## ##### | | ???????????????#?#?####################?### ###### | | ?????????????#???#########################" "##### | +----------------------------------------------------+ Best States ------------- Heat Dissipation 94 Energy Generation 31 Energy Capacity 400 Matter Stores 300 Matter Capacity 300 Sight Range 17 Robot Scan Range 14 Terrain Scan Range 16 Terrain Scan Density 510 Base Temperature (-) 100 Armor Coverage 375 Resistance: KI 15 Resistance: TH 5 Resistance: EX 5 Evasion (%) 40 Recoil Reduction 4 Item Schematics ----------------- None Robot Schematics ------------------ None Fabricated ------------ Nothing Alien Tech Used ----------------- None Achievements -------------- None Challenges ------------ None RPGLIKE | -11 -10 -9 -8 -8 -7 -7 -7 -7 --------- Run | Scr Mat Mat Mat Gar Fac Gar Fac Gar Levels Raised 13 | . 1 2 3 1 2 3 . 1 XP Earned 23375 | 3000 2040 3233 4290 2421 2246 4135 714 1296 XP Spent 21470 | 2995 1500 2950 4530 1350 1645 1700 4300 500 Upgrades 59 | 10 5 21 10 5 4 1 2 1 Power Slot 1 | 1 . . . . . . . . Propulsion Slot 3 | 1 . 1 1 . . . . . Utility Slot 7 | 1 1 . 2 . . 1 2 . Weapon Slot 1 | 1 . . . . . . . . Core Integrity 13 | . . 8 4 . 1 . . . Heat Dissipation 7 | . . 4 3 . . . . . Energy Generation 1 | . . 1 . . . . . . Mass Support 2 | . . 2 . . . . . . Inventory Capacity 2 | 2 . . . . . . . . Sight Range 1 | . . 1 . . . . . . Sensor Range 7 | 2 1 4 . . . . . . Terrain Scan Density 4 | 2 2 . . . . . . . Ranged Accuracy 2 | . 1 . . . . . . 1 KI Resistance % 3 | . . . . 3 . . . . TH Resistance % 1 | . . . . 1 . . . . EX Resistance % 1 | . . . . 1 . . . . TH Damage % 3 | . . . . . 3 . . . Protomatter Created 1606 | . 267 196 375 63 83 298 127 197 Integrity Restored 4175 | . 821 516 807 189 249 963 381 249 Core 4105 | . 751 516 807 189 249 963 381 249 Parts 70 | . 70 . . . . . . . Protomatter Decayed 131 | . 34 39 54 4 . . . . Game ------ Seed DeepReactiveHumpback Manual? 0 Play Time 01:00:47 Cumulative 64.8 hours Start 2019.12.17 @ 10:16:07 End 2019.12.17 @ 11:22:06 Sessions 1 Manual Loads 0 Difficulty Rogue Special Mode Winter2019/RPGLIKE Game No. 107 Rogue 107 Adventurer 0 Explorer 0 Win Type - Total 0 Types 0/0/0/0/0/0/0 Lore% 22 Gallery% 26 Achievement% 26 Wizard Run 0 Options --------- ASCII 0 Keyboard 0 Movement Mouse Keybinds 0 Fullscreen 1 Font 18/SmallcapsGlow Map View 76x50 Tactical HUD 1 Map Filters NONE Filters LOW_CONTRAST(13,24,33)|BRIGHTNESS(120)|SATURATION(80) Steam 1 RUN: 06ac0956-299c-425d-8a97-6c1d386b9a7e